Cogmind - Beta 17.1 @@@ ROGUE MODE // 2026.09.18 @ 03:11:07 Player: Kite Result: Destroyed by 78-2XD(R) with Subdweller Shrapnel Launcher Performance ------------- Evolutions (0) 0 Regions Visited (3) 600 Robots Destroyed (30) 150 Value Destroyed (771) 771 Prototype IDs (0) 0 Alien Tech Used (0) 0 Bonus (0) 0 TOTAL SCORE: 1521 Bonus ------- None Cogmind --------- Core Integrity 0/250 Matter 300/300 Energy 160/160 System Corruption 0% Temperature Cool (0) Movement Rolling (105) Ox1 Location -10/Subcaves Parts ------- > --- POWER (1) -------- Light Nuclear Core > --- PROPULSION (2) --- Wheel Compact Wheel > --- UTILITY (2) ------ Improved Heat Sink Large Storage Unit > --- WEAPON (2) ------- Spread Laser Spread Laser > --- INVENTORY (15) --- Wheel Wheel Heat Sink Medium Matter Pod (100) Large Matter Pod (150) High-capacity Matter Pod (200) Plasma Cutter Mace Mace Mace Mace Peak State ------------ > --- POWER ------------ Light Nuclear Core > --- PROPULSION ------- Aluminum Leg Wheel > --- UTILITY ---------- Improved Heat Sink Large Storage Unit > --- WEAPON ----------- Spread Laser Spread Laser > --- INVENTORY -------- Heat Sink Medium Matter Pod Large Matter Pod High-capacity Matter Pod Spread Laser Plasma Cutter Mace Mace Mace Mace [Rating: 14] Favorites ----------- Power Ion Engine Engine Ion Engine Power Core Light Nuclear Core Propulsion Light Treads Treads Light Treads Leg Aluminum Leg Wheel Wheel Utility Large Storage Unit Device Heat Sink Storage Large Storage Unit Weapon Spread Laser Energy Gun Spread Laser Ballistic Gun Light Assault Rifle Special Weapon Plasma Cutter Build | -11 -10 -10 -10 ------- Run | Yrd Mat Min Sub Slots Evolved . | . . . . Power . | . . . . Propulsion . | . . . . Utility . | . . . . Weapon . | . . . . Parts Attached 19 | 5 9 5 . Power 2 | 1 1 . . Engine 1 | 1 . . . Core 1 | . 1 . . Reactor . | . . . . Propulsion 7 | 2 2 3 . Treads 2 | 2 . . . Leg 1 | . . 1 . Wheel 4 | . 2 2 . Hover . | . . . . Flight . | . . . . Utility 4 | 1 2 1 . Device 2 | . 1 1 . Storage 2 | 1 1 . . Processor . | . . . . Hackware . | . . . . Protection . | . . . . Artifact . | . . . . Weapon 6 | 1 4 1 . Energy Gun 4 | . 3 1 . Energy Cannon . | . . . . Ballistic Gun 1 | 1 . . . Ballistic Cannon . | . . . . Launcher . | . . . . Special Weapon 1 | . 1 . . Impact Weapon . | . . . . Slashing Weapon . | . . . . Piercing Weapon . | . . . . Special Melee Weapon . | . . . . Unidentified Prototypes . | . . . . Parts Lost 5 | . 3 2 . Power 1 | . 1 . . Propulsion 3 | . 2 1 . Utility . | . . . . Weapon 1 | . . 1 . Highest Loss Streak 2 | . 2 1 . To Critical Strikes . | . . . . Average Backups 8 | 1 7 10 11 Power . | . . . . Propulsion . | . . . 2 Utility 2 | . 2 3 4 Weapon 4 | . 4 4 4 Tool/Special . | . . . . Unused Backups 15 | . 6 . 9 Power 2 | . 2 . . Propulsion 1 | . . . 1 Utility 4 | . 1 . 3 Weapon 6 | . 2 . 4 Tool/Special 2 | . 1 . 1 Average Slot Usage (%) 88 | . 84 97 100 Engine 6 | . 9 . . Core 5 | . 2 14 14 Treads 16 | . 22 . . Wheel 8 | . 2 21 28 Device 7 | . 4 14 14 Storage 14 | . 14 14 14 Energy Gun 27 | . 27 27 28 Peak Build Rating 14 | 5 12 14 14 Average Rating 10 | 3 9 13 14 On Entrance 7 | . 5 12 14 Avg Prop Armor Cover (%) 10 | . 12 9 . Naked Turns . | . . . . Heaviest Build 36 | 11 36 32 32 Greatest Support 40 | 40 40 26 26 Greatest Overweight (x) 10 | . 10 3 1 Average Overweight (x) . | . . 1 1 Largest Inventory Capacity 15 | 8 15 15 15 Average Capacity 11 | 7 11 15 15 Most Carried 11 | 3 9 11 11 Average Carried 8 | 1 7 10 11 Final Capacity 15 | 8 15 15 15 Final Carried 11 | 3 9 11 11 Class Distribution -------------------- 71% | Mutant 28% | Scavenger-Mutant Dominant Class ---------------- Mutant | -10/Materials Scavenger-Mutant | -10/Mines Scavenger-Mutant | -10/Subcaves Resources | -11 -10 -10 -10 ----------- Run | Yrd Mat Min Sub Matter Collected 828 | 68 608 152 . Remotely . | . . . . Salvage Created 878 | . 647 231 . Parts 44 | . 38 6 . Haulers Intercepted 1 | . 1 . . Recyclers Shooed 2 | . 2 . . Parts Field Recycled . | . . . . Retrieved Matter . | . . . . Parts Self-Destructed 2 | . . . 2 Prevented . | . . . . Parts Restored . | . . . . Kills | -11 -10 -10 -10 ------- Run | Yrd Mat Min Sub Combat Hostiles Destroyed 20 | . 16 4 . Guns 20 | . 16 4 . Classes Destroyed 8 | . 8 . . Worker 2 | . 1 1 . Builder 2 | . 2 . . Hauler 1 | . 1 . . Recycler 3 | . 2 1 . Mechanic 1 | . 1 . . Watcher 1 | . 1 . . Swarmer 3 | . 3 . . Grunt 17 | . 13 4 . Best Kill Streak 5 | . 5 4 . Combat Bots Only 4 | . 4 2 . Max Kills in Single Turn 1 | . 1 1 . Gunslinging . | . . . . Exploded . | . . . . Melee . | . . . . Uniques/NPCs Destroyed . | . . . . Combat | -11 -10 -10 -10 -------- Run | Yrd Mat Min Sub Hostile Shots Fired 98 | . 74 18 6 Missed 27 | . 19 6 2 Hits 71 | . 55 12 4 Projectile 71 | . 55 12 4 AOE 3 | . . . 3 Part Disruptions 1 | . 1 . . Damage Taken 1050 | . 680 163 207 Core 261 | . 95 57 109 Absorbed by Shields . | . . . . Core Remaining (%) 100 | 100 . . . Volleys Fired 85 | 5 59 17 4 Largest 2 | 1 2 2 2 Hottest 130 | 20 130 130 130 Shots Fired 145 | 5 102 30 8 Gun 145 | 5 102 30 8 Cannon . | . . . . Launcher . | . . . . Special . | . . . . Kinetic 5 | 5 . . . Thermal 140 | . 102 30 8 Explosive . | . . . . Electromagnetic . | . . . . Robot Hit Streak 12 | 2 11 12 8 Robot Miss Streak 11 | . 11 4 3 Penetration Max . | . . . . Secondary Targets 3 | . 3 . . Max Gunslinging Chain 1 | . 1 . . Shots Hit Robots 131 | 2 95 26 8 Core Hits 141 | 1 102 32 6 Critical Kills . | . . . . Critical Parts Destroyed . | . . . . Critical Strikes . | . . . . Melee Attacks . | . . . . Impact . | . . . . Slashing . | . . . . Piercing . | . . . . Sneak Attacks . | . . . . Combat Hostiles . | . . . . Follow-up Attacks . | . . . . Damage Inflicted 1653 | 19 1279 302 53 Guns 1451 | 19 1077 302 53 Cannons . | . . . . Explosions 201 | . 201 . . Melee . | . . . . Ramming 1 | . 1 . . Kinetic 19 | 19 . . . Thermal 1432 | . 1077 302 53 Explosive 201 | . 201 . . Electromagnetic . | . . . . Impact . | . . . . Slashing . | . . . . Piercing . | . . . . Highest Corruption . | . . . . Average Corruption . | . . . . Corruption Purged . | . . . . Corruption Blocked . | . . . . Overload Shots . | . . . . Overflow Damage . | . . . . Projectiles . | . . . . Explosions . | . . . . Melee . | . . . . Knockbacks . | . . . . Impact . | . . . . Kinetic . | . . . . Secondary . | . . . . Self-Inflicted Damage 28 | . 28 . . Shots 1 | . 1 . . Rammed 1 | . 1 . . Targets Rammed 1 | . 1 . . Kicked . | . . . . Crushed . | . . . . Highest Temperature 381 | . 381 207 . Average Temperature 118 | . 127 76 . Received Heat Transfer 429 | . 339 90 . Effects 5 | . 5 . . Energy Bleed 1 | . 1 . . Interference 3 | . 3 . . Damage (minor) 1 | . 1 . . Siege Activations . | . . . . Martial Activations . | . . . . Shielding Activations . | . . . . Robots Disrupted . | . . . . Combat Hostiles . | . . . . Robots Corrupted . | . . . . Combat Hostiles . | . . . . Parts Fried . | . . . . Impact Corruptions . | . . . . Robots Melted . | . . . . Combat Hostiles . | . . . . Parts Melted 1 | . 1 . . Heat Transferred 1810 | . 1360 385 65 Parts Sabotaged . | . . . . Parts Stolen . | . . . . Parts Stripped . | . . . . Power Chain Reactions . | . . . . Alert | -11 -10 -10 -10 ------- Run | Yrd Mat Min Sub Maximum Alert Level . | . . . . Low Security (%) 100 | 100 100 100 . Level 1 . | . . . . Level 2 . | . . . . Level 3 . | . . . . Level 4 . | . . . . Level 5 . | . . . . High Security . | . . . . Max Security . | . . . . Peak Influence 131 | . 131 93 . Initial 48 | . . 48 . Average 59 | . 63 61 . Influence Increases 672 | . 547 125 . Destroy 0b10 Robot/C 400 | . 320 80 . Destroy 0b10 Robot/NC 50 | . 40 10 . Destroy Leader 84 | . 64 20 . Successful Hack 13 | . 13 . . Select Force Hacks 30 | . 30 . . Disable Machine 75 | . 75 . . Destroy Structure 5 | . 5 . . Lose Combat Pursuer 15 | . . 15 . Influence Decreases 672 | . 422 217 33 Entered New Map 95 | . . 77 18 Time Decay 527 | . 392 120 15 Lost Part 50 | . 30 20 . Squads Dispatched 3 | . 3 . . Investigation 2 | . 2 . . Extermination . | . . . . Reinforcement 1 | . 1 . . Assault . | . . . . Garrison . | . . . . Intercept . | . . . . Searches Triggered . | . . . . Construction Impeded . | . . . . Haulers Reinforced . | . . . . Active Scanning Responses . | . . . . Cargo Convoy Interrupts . | . . . . Stealth | -11 -10 -10 -10 --------- Run | Yrd Mat Min Sub Distress Signals 2 | . 2 . . Communications Jammed . | . . . . Distress Signals . | . . . . Times Spotted 31 | . 24 5 2 Peak Tracking Total 3 | . 3 2 2 Tactical Retreats 1 | . . 1 . Traps | -11 -10 -10 -10 ------- Run | Yrd Mat Min Sub Traps Triggered 1 | . 1 . . Indirectly 1 | . 1 . . Trap Hack Attempts . | . . . . Triggered . | . . . . Disarmed . | . . . . Reprogrammed . | . . . . Reused . | . . . . Traps Extracted . | . . . . Installed . | . . . . Triggered . | . . . . Machines | -11 -10 -10 -10 ---------- Run | Yrd Mat Min Sub Machines Disabled 5 | . 5 . . Max in Single Turn 3 | . 3 . . Machines Repaired . | . . . . Machines Dismantled . | . . . . Machines Sabotaged . | . . . . Overloaded Fab Kills . | . . . . Hacking | -11 -10 -10 -10 --------- Run | Yrd Mat Min Sub Machines Accessed 3 | . 3 . . Terminals 2 | . 2 . . Fabricators . | . . . . Repair Stations . | . . . . Recycling Units 1 | . 1 . . Scanalyzers . | . . . . Garrison Access . | . . . . Total Hacks 8 | . 8 . . Successful 3 | . 3 . . Failed 5 | . 5 . . Catastrophic 2 | . 2 . . Database Lockouts . | . . . . Manual 8 | . 8 . . Terminals 7 | . 7 . . Fabricators . | . . . . Repair Stations . | . . . . Recycling Units 1 | . 1 . . Scanalyzers . | . . . . Garrison Access . | . . . . Terminal Hacks 2 | . 2 . . Part Schematic 1 | . 1 . . Hauler Manifests 1 | . 1 . . Fabricator Hacks . | . . . . Repair Station Hacks . | . . . . Recycling Unit Hacks . | . . . . Scanalyzer . | . . . . Garrison Access Hacks . | . . . . Unauthorized Hacks 1 | . 1 . . Terminals . | . . . . Fabricators . | . . . . Repair Stations . | . . . . Recycling Units 1 | . 1 . . Tunnel 1 | . 1 . . Scanalyzers . | . . . . Garrison Access . | . . . . Data Cores Recovered . | . . . . Used . | . . . . Hacking Detections 2 | . 2 . . Full Trace Events 1 | . 1 . . Feedback Events . | . . . . Feedback Blocked . | . . . . Robot Schematics Acquired . | . . . . Robots Built . | . . . . Authchips . | . . . . Time . | . . . . Total Robot Build Rating . | . . . . Part Schematics Acquired 1 | . 1 . . Parts Built . | . . . . Authchips . | . . . . Time . | . . . . Total Part Build Rating . | . . . . Part Studies Acquired . | . . . . Parts Repaired . | . . . . Time . | . . . . Parts Recycled . | . . . . Recycled Matter . | . . . . Retrieved Matter . | . . . . Retrieved Components . | . . . . Parts Scanalyzed . | . . . . Part Schematics Acquired . | . . . . Parts Damaged . | . . . . Bothacking | -11 -10 -10 -10 ------------ Run | Yrd Mat Min Sub Used RIF Installer . | . . . . Robots Hacked . | . . . . Non-combat . | . . . . Combat . | . . . . Robot Hacks Applied . | . . . . Relay Couplers Released . | . . . . Fabnet Peak Effective % . | . . . . Robots Rewired . | . . . . Allies Hacked . | . . . . Hacks Repelled . | . . . . Allies | -11 -10 -10 -10 -------- Run | Yrd Mat Min Sub Total Allies . | . . . . Largest Group . | . . . . Highest-Rated Group . | . . . . Highest-Rated Ally . | . . . . Total Orders . | . . . . Ally Attacks . | . . . . Total Damage . | . . . . Kills . | . . . . Allies Corrupted . | . . . . Allies Melted . | . . . . Intel | -11 -10 -10 -10 ------- Run | Yrd Mat Min Sub Active Infowar (turns) . | . . . . Robot Analysis Total . | . . . . Derelict Logs Recovered . | . . . . Drone Launches . | . . . . Drone Recoveries . | . . . . Exploration | -11 -10 -10 -10 ------------- Run | Yrd Mat Min Sub Turns Passed 1533 | 74 1085 250 124 Spaces Moved 822 | 36 536 165 85 Core 13 | 2 11 . . Treads 466 | 34 432 . . Legs . | . . . . Wheels 343 | . 93 165 85 Hover . | . . . . Flight . | . . . . Fastest Speed 50 | 50 95 95 105 Average Speed 143 | 153 158 112 105 Slowest Speed 550 | 160 550 125 105 Overloaded Moves . | . . . . Propulsion Burnouts . | . . . . Robots Hopped . | . . . . Potential Cave-ins . | . . . . Cave-ins Triggered . | . . . . Exploration Rate (%) 30 | 5 78 33 7 Regions Visited 3 Branch Regions 2 Pre-discovered Areas 1 | . 1 . . Known Exits Taken . | . . . . Unknown Exits Taken 3 | 1 1 1 . Scrap Searched 1 | . . 1 . Spaces Dug . | . . . . Terrain Destroyed 4 | . 4 . . Melee . | . . . . Projectile . | . . . . AOE 4 | . 4 . . Terrain Rammed . | . . . . Walls Destroyed . | . . . . Machines Disabled . | . . . . Actions | -11 -10 -10 -10 --------- Run | Yrd Mat Min Sub Total 1028 | 49 670 198 111 Wait 73 | . 43 8 22 Move 819 | 35 535 164 85 Hop . | . . . . Pick Up 18 | 4 13 1 . Fast Attach 15 | 4 8 3 . Attach 2 | 1 . 1 . Detach . | . . . . Swap 3 | . 1 2 . Drop 12 | . 10 2 . Fire 85 | 5 59 17 4 Melee . | . . . . Ram . | . . . . Kick . | . . . . Crush 1 | . 1 . . Escape Stasis . | . . . . Rewire . | . . . . Trap . | . . . . Miscellaneous . | . . . . Route ------- -11/Scrapyard -10/Materials (discovered 4 exits: [*Mat x2] / [*Min x2]) -10/Mines -10/Subcaves History --------- Turn | Location | Event 22 | -11/Scrapyard | Discovered new exit (range 16) 75 | -11/Scrapyard | Entered Materials 316 | -10/Materials | Build established: Mutant 462 | -10/Materials | Discovered new exit (range 11) 702 | -10/Materials | Discovered new exit (range 13) 710 | -10/Materials | Discovered new exit (range 15) 848 | -10/Materials | Discovered new exit (range 15) 1160 | -10/Materials | Entered Mines 1281 | -10/Mines | Core integrity fell below 50% 1388 | -10/Mines | Assembled infested the area 1393 | -10/Mines | Assisted by a Guerilla fighting off Assembled 1405 | -10/Mines | Discovered new exit (range 6) 1410 | -10/Mines | Entered Subcaves 1411 | -10/Subcaves | Approached by a straggling Scientist 1495 | -10/Subcaves | Shifting Twisted Machinery released Mak. System Restoration Module 1503 | -10/Subcaves | Shifting Twisted Machinery released Sub. Monowheel 1515 | -10/Subcaves | Build established: Scavenger-Mutant 1531 | -10/Subcaves | Core integrity fell below 20% 1534 | -10/Subcaves | Ambushed by Subdweller buried in earth 1534 | -10/Subcaves | Destroyed by 78-2XD(R) with Subdweller Shrapnel Launcher Last Messages --------------- 01408_ T-07 Excavator is excavating. LOCATION=UNKNOWN AMBIENT_HEAT=-10 GOAL=ESCAPE 01411_ DU-GAI(c): "Thank the algorithms! I was beginning to lose hope I'd never make it past all the Subs lurking out here." 01414_ DU-GAI(c): "Hey, let me tag along and I can get us both out of this nasty situation. At least I think I can... The group I got separated from was talking about a shortcut back to the UFD." DU-GAI(c): "I think it's somewhere northeast of here" Mak. System Restoration Module falls loose from the Twisted Machinery. Sub. Monowheel falls loose from the Twisted Machinery. DU-GAI(c): "I think it's somewhere east of here" 01530_ DU-GAI(c) destroyed. Map ----- +----------------------------------------------------+ | | | | | ?????????????????????????????????????????????????? | | ?????????????????????????????????????????????????? | | ?????????????????????????????????????????????????? | | ?????????????????????????????????????????????????? | | ?????????????????????????????????????????????????? | | ?????????????????????????????????????????????????? | | ?????????????????????????????????????????????????? | | ?????????????????????????????????????????????????? | | ?????????????????????????????????????????????????? | | ?????????????????????????????????????????????????? | | ?????????????????????????????????????????????????? | | ????????????????????????????####?#???????????????? | | ???????????????????????????? # ????????????????? | | ??????????????????????????## ?????????????????? | | ??????????????????????????#RR ##?????????????????? | | ????????????????????????### "###??##???????????? | | ????????????????"#????###"< ### ##??????????? | | ??????????????##"""####""" #??????????? | | ??????????????#"""" ###???## ####???????? | | ??????????# #??## #???????? | | ??????????# = ; #?## #???????? | | ??????????# "## ###; ### #???????? | | ??????????#????# ????#; ? | | ???????????????#?????# @ ### % # | | ?????????????????????# ! #### ### ## | | ?????????????????????# # #? #????? | | ?????????????????????# # #?? #????? | | ?????????????????????### ;# #??# #????? | | ???????????????????????# R ; ##??? ##????? | | ???????????????????????## ## ##????? #?????? | | ??????????????????????????## #?????? ?????? | | ??????????????????????????# ##?????? %????? | | ??????????????????????????# #??????? ????? | | ???????????????????????#### # # #???????????? | | ???????????????????????# ## #### #???????????? | | ???????????????????????# ##??# #??????????? | | ??????????????????????## ##??? #??????????? | | ??????????????????????# #??? ##??????????? | | ??????????????????????# #??? ##???????????? | | ?????????????????????## #???####????????????? | | ?????????????????????# ###???????????????????? | | ?????????????????????# ##?????????????????????? | | ?????????????????????# ##?????????????????????? | | ?????????????????????# #?????????????????????? | | ?????????????????????## ##????????????????????? | | ?????????????????????## #????????????????????? | | ?????????????????????# #????????????????????? | | ?????????????????????## #????????????????????? | +----------------------------------------------------+ Best States ------------- Heat Dissipation 39 Energy Generation 14 Energy Capacity 250 Matter Stores 300 Matter Capacity 300 Sight Range 16 Terrain Scan Density 10 Evasion (%) 41 Recoil Reduction 2 Item Schematics ----------------- Huge Storage Unit | -10/Materials | Hacked Robot Schematics ------------------ None Fabricated ------------ Nothing Repaired ---------- Nothing Studied --------- None Alien Tech Used ----------------- None Achievements -------------- None Challenges ------------ None Game ------ Seed ChromionNovaHumpback Manual? 0 Play Time 00:06:24 Cumulative 642.5 hours Start 2026.09.18 @ 02:59:16 End 2026.09.18 @ 03:11:07 Sessions 1 Manual Loads 0 Difficulty Rogue Special Mode None Game No. 513 Rogue 513 Adventurer 0 Explorer 0 Win Type - Total 22 Types 13/0/4/1/0/0/0/2/0/2 Lore% 70 Gallery% 75 Achievement% 72 Wizard Run 0 Options --------- Layout 1 ASCII 0 Keyboard 0 Movement Mouse Keybinds 0 Fullscreen 2 Font 24/Cog Map View 50x35 Zoom Use 55% Tactical HUD 1 Map Filters NONE Filters NONE Steam 1 RUN: fcf54711-36ad-457f-bcca-297fb0d86eb0